[Event "***Titled Tuesday 3|2 Blitz"]
[Site "Chess.com"]
[Date "2017.02.07"]
[Round "2"]
[White "BilodeauA"]
[Black "Janosik"]
[Result "1-0"]
[WhiteElo "2575"]
[BlackElo "2615"]
[TimeControl "180+2"]
[EndTime "13:24:33 PST"]
[Termination "BilodeauA won by resignation"]

1. e4 {[%clk 0:03:02]} 1... e5 {[%clk 0:03:00.7]} 2. Nf3 {[%clk 0:03:02.6]} 2...
Nc6 {[%clk 0:03:00.5]} 3. Bb5 {[%clk 0:03:03.1]} 3... Nf6 {[%clk 0:03:01.6]} 4.
d3 {[%clk 0:03:02.4]} 4... Bc5 {[%clk 0:03:02.3]} 5. Bxc6 {[%clk 0:03:00.8]}
5... dxc6 {[%clk 0:03:03.2]} 6. Nbd2 {[%clk 0:02:59.7]} 6... O-O {[%clk
0:03:03.9]} 7. Qe2 {[%clk 0:02:56.3]} 7... Nd7 {[%clk 0:03:04.6]} 8. Nc4 {[%clk
0:02:53.5]} 8... Re8 {[%clk 0:03:05.9]} 9. Bd2 {[%clk 0:02:53.5]} 9... Bd6
{[%clk 0:03:06.7]} 10. O-O-O {[%clk 0:02:39.2]} 10... Nf8 {[%clk 0:03:06.4]} 11.
h3 {[%clk 0:02:37.1]} 11... c5 {[%clk 0:03:06.9]} 12. g4 {[%clk 0:02:34.3]}
12... Ne6 {[%clk 0:03:06.9]} 13. Kb1 {[%clk 0:02:30.2]} 13... b5 {[%clk
0:03:06.9]} 14. Ne3 {[%clk 0:02:22.4]} 14... Nd4 {[%clk 0:03:03.2]} 15. Nxd4
{[%clk 0:02:20.9]} 15... cxd4 {[%clk 0:03:05.1]} 16. Nf5 {[%clk 0:02:21.9]}
16... Be6 {[%clk 0:03:05.7]} 17. h4 {[%clk 0:02:16.3]} 17... b4 {[%clk
0:03:00.9]} 18. h5 {[%clk 0:02:11.5]} 18... a5 {[%clk 0:02:53.2]} 19. g5 {[%clk
0:02:12.4]} 19... a4 {[%clk 0:02:30.3]} 20. g6 {[%clk 0:01:38.7]} 20... b3
{[%clk 0:02:26.2]} 21. gxf7+ {[%clk 0:01:36.1]} 21... Kxf7 {[%clk 0:02:04.7]}
22. Rdg1 {[%clk 0:01:22.1]} 22... bxc2+ {[%clk 0:01:56.9]} 23. Kxc2 {[%clk
0:01:22.9]} 23... Bf8 {[%clk 0:01:37.1]} 24. Qf3 {[%clk 0:01:17.1]} 24... Bxf5
{[%clk 0:01:31.7]} 25. Qxf5+ {[%clk 0:01:17.4]} 25... Kg8 {[%clk 0:01:17.2]} 26.
h6 {[%clk 0:01:11.8]} 26... g6 {[%clk 0:01:02.8]} 27. Rxg6+ {[%clk 0:00:43.6]}
27... hxg6 {[%clk 0:01:02.5]} 28. Qxg6+ {[%clk 0:00:45.5]} 28... Kh8 {[%clk
0:01:04.4]} 29. Rg1 {[%clk 0:00:46.3]} 1-0

[Event "***Titled Tuesday 3|2 Blitz"]
[Site "Chess.com"]
[Date "2017.02.07"]
[Round "2"]
[White "MateusViageiro"]
[Black "Hamisandwich"]
[Result "0-1"]
[WhiteElo "2433"]
[BlackElo "2429"]
[TimeControl "180+2"]
[EndTime "13:24:45 PST"]
[Termination "Hamisandwich won by resignation"]

1. Nf3 {[%clk 0:03:01.9]} 1... c5 {[%clk 0:02:54.2]} 2. g3 {[%clk 0:03:02.4]}
2... b6 {[%clk 0:02:55.3]} 3. Bg2 {[%clk 0:03:03.2]} 3... Bb7 {[%clk 0:02:57]}
4. O-O {[%clk 0:03:03.8]} 4... Nf6 {[%clk 0:02:58.6]} 5. d4 {[%clk 0:03:04.7]}
5... cxd4 {[%clk 0:02:59.1]} 6. Qxd4 {[%clk 0:03:05.7]} 6... g6 {[%clk
0:02:54.1]} 7. c4 {[%clk 0:03:06]} 7... Bg7 {[%clk 0:02:55]} 8. Nc3 {[%clk
0:03:04.9]} 8... Nc6 {[%clk 0:02:53.7]} 9. Qd1 {[%clk 0:03:05.4]} 9... Na5
{[%clk 0:02:49.9]} 10. Qd3 {[%clk 0:02:54.7]} 10... Rc8 {[%clk 0:02:48.1]} 11.
b3 {[%clk 0:02:48.5]} 11... d5 {[%clk 0:02:49.2]} 12. cxd5 {[%clk 0:02:16.3]}
12... Nxd5 {[%clk 0:02:46.7]} 13. Nxd5 {[%clk 0:02:12.5]} 13... Qxd5 {[%clk
0:02:48.6]} 14. Rb1 {[%clk 0:02:04.3]} 14... Qxd3 {[%clk 0:02:42.7]} 15. exd3
{[%clk 0:02:05.4]} 15... O-O {[%clk 0:02:44.1]} 16. Ba3 {[%clk 0:02:05.4]} 16...
Rfe8 {[%clk 0:02:41.5]} 17. Rbc1 {[%clk 0:02:00.8]} 17... e6 {[%clk 0:02:39.5]}
18. Rxc8 {[%clk 0:01:52.2]} 18... Rxc8 {[%clk 0:02:41.4]} 19. Rc1 {[%clk
0:01:52.5]} 19... Rxc1+ {[%clk 0:02:38.1]} 20. Bxc1 {[%clk 0:01:52.3]} 20... Bd5
{[%clk 0:02:32.7]} 21. Ng5 {[%clk 0:01:45.7]} 21... Bxg2 {[%clk 0:02:32.7]} 22.
Kxg2 {[%clk 0:01:46.4]} 22... Nc6 {[%clk 0:02:34.5]} 23. a3 {[%clk 0:01:27.5]}
23... Nd4 {[%clk 0:02:14.4]} 24. b4 {[%clk 0:01:26.4]} 24... Nb3 {[%clk
0:02:04.6]} 25. Be3 {[%clk 0:01:25.2]} 25... Bb2 {[%clk 0:02:05.9]} 26. a4
{[%clk 0:01:25.2]} 26... Ba3 {[%clk 0:01:59.7]} 27. b5 {[%clk 0:01:24.9]} 27...
Bc5 {[%clk 0:01:59.8]} 28. Ne4 {[%clk 0:01:20.1]} 28... Bxe3 {[%clk 0:02:00.6]}
29. fxe3 {[%clk 0:01:20.6]} 29... f5 {[%clk 0:02:00.8]} 30. Nd6 {[%clk
0:01:06.6]} 30... Nc5 {[%clk 0:01:57.8]} 31. Nc8 {[%clk 0:01:07.5]} 31... Nxd3
{[%clk 0:01:46.7]} 32. Nxa7 {[%clk 0:01:08.3]} 32... Nc5 {[%clk 0:01:47.5]} 33.
a5 {[%clk 0:01:09.2]} 33... bxa5 {[%clk 0:01:49.1]} 34. b6 {[%clk 0:01:07.2]}
34... a4 {[%clk 0:01:45.9]} 35. Nb5 {[%clk 0:01:07.8]} 35... Kf8 {[%clk
0:01:45.3]} 36. Kf2 {[%clk 0:01:03.1]} 36... Ke7 {[%clk 0:01:45.9]} 37. Ke2
{[%clk 0:01:04]} 37... Kd7 {[%clk 0:01:46.1]} 38. Na7 {[%clk 0:01:00.8]} 38...
a3 {[%clk 0:01:44.3]} 39. Nb5 {[%clk 0:00:51.9]} 39... a2 {[%clk 0:01:44.5]} 0-1

[Event "***Titled Tuesday 3|2 Blitz"]
[Site "Chess.com"]
[Date "2017.02.07"]
[Round "2"]
[White "cheese111"]
[Black "IM_Michal_Luch"]
[Result "0-1"]
[WhiteElo "2219"]
[BlackElo "2383"]
[TimeControl "180+2"]
[EndTime "13:25:14 PST"]
[Termination "IM_Michal_Luch won by resignation"]

1. e4 {[%clk 0:03:02]} 1... Nf6 {[%clk 0:03:01.9]} 2. e5 {[%clk 0:03:02.8]} 2...
Nd5 {[%clk 0:03:00.4]} 3. Nf3 {[%clk 0:03:03.9]} 3... d6 {[%clk 0:03:01]} 4. d4
{[%clk 0:03:04.7]} 4... dxe5 {[%clk 0:03:01.8]} 5. Nxe5 {[%clk 0:03:06.6]} 5...
c6 {[%clk 0:03:03.4]} 6. Be2 {[%clk 0:03:06.8]} 6... Bf5 {[%clk 0:03:00.4]} 7.
O-O {[%clk 0:03:08.1]} 7... Nd7 {[%clk 0:03:01.3]} 8. Nf3 {[%clk 0:03:09.6]}
8... e6 {[%clk 0:03:00.4]} 9. c4 {[%clk 0:03:10.8]} 9... N5f6 {[%clk 0:02:57.8]}
10. Nc3 {[%clk 0:03:11.2]} 10... Ne4 {[%clk 0:02:55.8]} 11. Nxe4 {[%clk
0:03:03.4]} 11... Bxe4 {[%clk 0:02:57.7]} 12. Be3 {[%clk 0:03:04.8]} 12... Bd6
{[%clk 0:02:38.7]} 13. Ng5 {[%clk 0:02:51.1]} 13... Bg6 {[%clk 0:02:36.5]} 14.
Rc1 {[%clk 0:02:36.8]} 14... Nf6 {[%clk 0:02:29]} 15. Qb3 {[%clk 0:02:32.8]}
15... Qc7 {[%clk 0:02:29]} 16. h3 {[%clk 0:02:11.3]} 16... h6 {[%clk 0:02:21.3]}
17. Nf3 {[%clk 0:02:10.2]} 17... Bh5 {[%clk 0:02:22.9]} 18. Rfd1 {[%clk
0:02:04.2]} 18... O-O {[%clk 0:02:06.1]} 19. d5 {[%clk 0:01:54.3]} 19... exd5
{[%clk 0:02:02.4]} 20. cxd5 {[%clk 0:01:55.8]} 20... c5 {[%clk 0:02:04]} 21. Qc4
{[%clk 0:01:49.1]} 21... Rfe8 {[%clk 0:01:38]} 22. Rc2 {[%clk 0:01:41.9]} 22...
a6 {[%clk 0:01:20.2]} 23. Re1 {[%clk 0:01:25.1]} 23... b5 {[%clk 0:01:19.4]} 24.
Qd3 {[%clk 0:01:19.3]} 24... Bg6 {[%clk 0:01:19.7]} 25. Qd1 {[%clk 0:01:19]}
25... Bxc2 {[%clk 0:01:20]} 26. Qxc2 {[%clk 0:01:20.9]} 26... Nxd5 {[%clk
0:01:20.5]} 27. Bd2 {[%clk 0:01:20.6]} 27... Bf4 {[%clk 0:01:17.2]} 28. Qf5
{[%clk 0:01:16.7]} 28... Bxd2 {[%clk 0:01:15.7]} 29. Nxd2 {[%clk 0:01:17.7]}
29... Nf4 {[%clk 0:01:14.2]} 30. Ne4 {[%clk 0:01:13.7]} 30... Nxe2+ {[%clk
0:01:09.7]} 31. Rxe2 {[%clk 0:01:15.6]} 31... Qe5 {[%clk 0:01:10.7]} 32. Qf3
{[%clk 0:01:11.8]} 32... Qd4 {[%clk 0:01:08]} 33. Nc3 {[%clk 0:00:53.5]} 33...
Rad8 {[%clk 0:01:00.5]} 0-1

[Event "***Titled Tuesday 3|2 Blitz"]
[Site "Chess.com"]
[Date "2017.02.07"]
[Round "2"]
[White "Yaacovn"]
[Black "AlexanderL"]
[Result "0-1"]
[WhiteElo "2594"]
[BlackElo "2589"]
[TimeControl "180+2"]
[EndTime "13:25:33 PST"]
[Termination "AlexanderL won by resignation"]

1. d4 {[%clk 0:03:00]} 1... Nf6 {[%clk 0:02:59.6]} 2. Nf3 {[%clk 0:02:59.2]}
2... d5 {[%clk 0:02:59]} 3. c4 {[%clk 0:02:59.5]} 3... e6 {[%clk 0:02:56.5]} 4.
Nc3 {[%clk 0:02:59.8]} 4... c6 {[%clk 0:02:56.6]} 5. Qb3 {[%clk 0:02:54.9]} 5...
dxc4 {[%clk 0:02:51.6]} 6. Qxc4 {[%clk 0:02:55.5]} 6... b5 {[%clk 0:02:52.8]} 7.
Qd3 {[%clk 0:02:54.8]} 7... a6 {[%clk 0:02:53.4]} 8. g3 {[%clk 0:02:54.9]} 8...
c5 {[%clk 0:02:52.1]} 9. Bg2 {[%clk 0:02:53.9]} 9... Bb7 {[%clk 0:02:53.2]} 10.
O-O {[%clk 0:02:53.5]} 10... Nbd7 {[%clk 0:02:52.4]} 11. Rd1 {[%clk 0:02:51.3]}
11... Qb6 {[%clk 0:02:50.4]} 12. a4 {[%clk 0:02:49.1]} 12... c4 {[%clk
0:02:47.2]} 13. Qc2 {[%clk 0:02:43.9]} 13... Rc8 {[%clk 0:02:44.1]} 14. axb5
{[%clk 0:02:44]} 14... axb5 {[%clk 0:02:45.4]} 15. Bg5 {[%clk 0:02:15]} 15...
Be7 {[%clk 0:02:42.3]} 16. Bxf6 {[%clk 0:02:13.5]} 16... Nxf6 {[%clk 0:02:37.7]}
17. Ng5 {[%clk 0:01:41.7]} 17... Bxg2 {[%clk 0:02:33]} 18. Kxg2 {[%clk
0:01:42.1]} 18... Qb7+ {[%clk 0:02:32.5]} 19. Kg1 {[%clk 0:01:38.8]} 19... O-O
{[%clk 0:01:40.2]} 20. Nce4 {[%clk 0:01:34.6]} 20... Nxe4 {[%clk 0:01:35.5]} 21.
Qxe4 {[%clk 0:01:34.7]} 21... Qxe4 {[%clk 0:01:36.5]} 22. Nxe4 {[%clk
0:01:35.2]} 22... Rfd8 {[%clk 0:01:32.4]} 23. e3 {[%clk 0:01:25]} 23... Rd7
{[%clk 0:01:19.9]} 24. Ra5 {[%clk 0:01:19.7]} 24... Rb7 {[%clk 0:01:18.1]} 25.
Rda1 {[%clk 0:01:18]} 25... f5 {[%clk 0:01:15.4]} 26. Nd2 {[%clk 0:01:08]} 26...
Kf7 {[%clk 0:00:56.6]} 27. Nf3 {[%clk 0:01:00.7]} 27... Bf6 {[%clk 0:00:57.9]}
28. Kf1 {[%clk 0:00:54.2]} 28... Rcc7 {[%clk 0:00:55.3]} 29. Ke2 {[%clk
0:00:53.9]} 29... g5 {[%clk 0:00:56.4]} 30. h3 {[%clk 0:00:54.5]} 30... h5
{[%clk 0:00:57.2]} 31. Ra6 {[%clk 0:00:52.6]} 31... g4 {[%clk 0:00:57.7]} 32.
hxg4 {[%clk 0:00:53.4]} 32... hxg4 {[%clk 0:00:59.6]} 33. Ne1 {[%clk 0:00:50.7]}
33... Be7 {[%clk 0:01:00.5]} 34. Ng2 {[%clk 0:00:45.9]} 34... Bg5 {[%clk
0:00:54.7]} 35. Rh1 {[%clk 0:00:43.5]} 35... b4 {[%clk 0:00:54]} 36. Rh7+ {[%clk
0:00:42.4]} 36... Kf6 {[%clk 0:00:54.9]} 37. Rd7 {[%clk 0:00:39.9]} 37... Rxd7
{[%clk 0:00:55]} 0-1

[Event "***Titled Tuesday 3|2 Blitz"]
[Site "Chess.com"]
[Date "2017.02.07"]
[Round "2"]
[White "biostatistician"]
[Black "jcibarra"]
[Result "0-1"]
[WhiteElo "2488"]
[BlackElo "2630"]
[TimeControl "180+2"]
[EndTime "13:25:37 PST"]
[Termination "jcibarra won by resignation"]

1. d4 {[%clk 0:03:02]} 1... Nf6 {[%clk 0:03:00.3]} 2. Nf3 {[%clk 0:03:03.3]}
2... d6 {[%clk 0:02:58.5]} 3. c4 {[%clk 0:03:04.7]} 3... g6 {[%clk 0:02:58.9]}
4. Nc3 {[%clk 0:03:06.6]} 4... Bf5 {[%clk 0:02:59.8]} 5. d5 {[%clk 0:03:02.7]}
5... e5 {[%clk 0:02:58.7]} 6. dxe6 {[%clk 0:02:57.4]} 6... Bxe6 {[%clk
0:02:59.4]} 7. e4 {[%clk 0:02:58]} 7... Bg7 {[%clk 0:02:56.9]} 8. Be2 {[%clk
0:02:57.7]} 8... O-O {[%clk 0:02:57.1]} 9. O-O {[%clk 0:02:58.6]} 9... Nc6
{[%clk 0:02:58]} 10. Bg5 {[%clk 0:02:54.8]} 10... h6 {[%clk 0:02:57.3]} 11. Bh4
{[%clk 0:02:55.2]} 11... g5 {[%clk 0:02:52]} 12. Bg3 {[%clk 0:02:56.2]} 12...
Nh5 {[%clk 0:02:52.3]} 13. Qd2 {[%clk 0:02:53]} 13... g4 {[%clk 0:02:38.4]} 14.
Nh4 {[%clk 0:02:49.9]} 14... Qg5 {[%clk 0:02:25.8]} 15. Qxg5 {[%clk 0:02:34.5]}
15... hxg5 {[%clk 0:02:27.7]} 16. Nf5 {[%clk 0:02:35.9]} 16... Bxf5 {[%clk
0:02:27.5]} 17. exf5 {[%clk 0:02:37.8]} 17... Bxc3 {[%clk 0:02:22.1]} 18. bxc3
{[%clk 0:02:34.4]} 18... Nxg3 {[%clk 0:02:23.4]} 19. fxg3 {[%clk 0:02:07.9]}
19... Ne5 {[%clk 0:02:22.9]} 20. Rad1 {[%clk 0:02:08.3]} 20... f6 {[%clk
0:02:21.6]} 21. Rd4 {[%clk 0:02:07.8]} 21... Rfe8 {[%clk 0:02:05.1]} 22. Bxg4
{[%clk 0:02:07]} 22... Re7 {[%clk 0:01:45.6]} 23. Bf3 {[%clk 0:01:45.5]} 23...
Rb8 {[%clk 0:01:22.7]} 24. h4 {[%clk 0:01:40.5]} 24... g4 {[%clk 0:01:04.3]} 25.
Bxg4 {[%clk 0:01:31]} 25... Rg7 {[%clk 0:01:05.4]} 26. Rff4 {[%clk 0:01:23.7]}
26... Kh7 {[%clk 0:00:51.8]} 27. Kf2 {[%clk 0:00:32.8]} 27... Rbg8 {[%clk
0:00:51.3]} 28. Bf3 {[%clk 0:00:31]} 28... Rxg3 {[%clk 0:00:46.6]} 29. c5 {[%clk
0:00:21]} 29... dxc5 {[%clk 0:00:44.4]} 30. Rd5 {[%clk 0:00:21.5]} 30... c4
{[%clk 0:00:41.2]} 31. Rc5 {[%clk 0:00:18.9]} 31... Nd3+ {[%clk 0:00:41.9]} 0-1

[Event "***Titled Tuesday 3|2 Blitz"]
[Site "Chess.com"]
[Date "2017.02.07"]
[Round "2"]
[White "Maitreia"]
[Black "BillieKimbah"]
[Result "1/2-1/2"]
[WhiteElo "2476"]
[BlackElo "2593"]
[TimeControl "180+2"]
[EndTime "13:25:44 PST"]
[Termination "Game drawn by agreement"]

1. c4 {[%clk 0:03:02]} 1... Nf6 {[%clk 0:02:59.6]} 2. g3 {[%clk 0:03:00.1]} 2...
e5 {[%clk 0:02:57.6]} 3. Bg2 {[%clk 0:03:00.8]} 3... d5 {[%clk 0:02:58.9]} 4.
cxd5 {[%clk 0:03:02.7]} 4... Nxd5 {[%clk 0:03:00.3]} 5. Nc3 {[%clk 0:03:04.6]}
5... Nb6 {[%clk 0:03:01.4]} 6. Nf3 {[%clk 0:03:05.9]} 6... Nc6 {[%clk
0:03:01.9]} 7. O-O {[%clk 0:03:07.4]} 7... Be7 {[%clk 0:03:03.1]} 8. Rb1 {[%clk
0:03:08.3]} 8... a5 {[%clk 0:03:01.9]} 9. a3 {[%clk 0:03:09.2]} 9... O-O {[%clk
0:03:00.9]} 10. b4 {[%clk 0:03:08.7]} 10... axb4 {[%clk 0:02:59.8]} 11. axb4
{[%clk 0:03:10.6]} 11... f6 {[%clk 0:02:56.2]} 12. b5 {[%clk 0:03:11.2]} 12...
Nd4 {[%clk 0:02:55.7]} 13. d3 {[%clk 0:03:11.6]} 13... Be6 {[%clk 0:02:49.1]}
14. Nd2 {[%clk 0:03:12.6]} 14... Qc8 {[%clk 0:02:43.8]} 15. e3 {[%clk
0:03:10.9]} 15... Nf5 {[%clk 0:02:43.5]} 16. Nf3 {[%clk 0:03:10.4]} 16... Rd8
{[%clk 0:02:42.9]} 17. Qc2 {[%clk 0:03:10.7]} 17... Bf8 {[%clk 0:02:27.2]} 18.
Bb2 {[%clk 0:03:10.7]} 18... Nd6 {[%clk 0:02:23.9]} 19. Rfc1 {[%clk 0:03:09.2]}
19... Qd7 {[%clk 0:02:13.5]} 20. Nd2 {[%clk 0:03:04.9]} 20... Ra7 {[%clk
0:01:48.6]} 21. Nde4 {[%clk 0:03:03.2]} 21... Nxe4 {[%clk 0:01:44]} 22. Nxe4
{[%clk 0:03:05.1]} 22... Nd5 {[%clk 0:01:33.9]} 23. Nc5 {[%clk 0:02:54.1]} 23...
Bxc5 {[%clk 0:01:33.8]} 24. Qxc5 {[%clk 0:02:56]} 24... b6 {[%clk 0:01:34.9]}
25. Qc6 {[%clk 0:02:39.2]} 25... Qxc6 {[%clk 0:01:26.6]} 26. Rxc6 {[%clk
0:02:41.1]} 26... Kf7 {[%clk 0:01:21.3]} 27. Rbc1 {[%clk 0:02:26.5]} 27... Rd7
{[%clk 0:01:21.2]} 28. Bc3 {[%clk 0:02:02.3]} 28... Ne7 {[%clk 0:01:18.1]} 29.
d4 {[%clk 0:01:57.1]} 29... exd4 {[%clk 0:01:13.2]} 30. Rxe6 {[%clk 0:01:46.9]}
30... Kxe6 {[%clk 0:01:06.9]} 31. Bxd4 {[%clk 0:01:47.4]} 31... Kf7 {[%clk
0:01:02.3]} 32. Bh3 {[%clk 0:01:46.1]} 32... Rd5 {[%clk 0:01:01.7]} 33. Bf1
{[%clk 0:01:46.5]} 33... Rd6 {[%clk 0:01:02.8]} 34. Bc4+ {[%clk 0:01:45]} 34...
Ke8 {[%clk 0:01:04]} 35. Bd3 {[%clk 0:01:44.4]} 35... h6 {[%clk 0:01:01]} 36. h4
{[%clk 0:01:40.2]} 36... Ra4 {[%clk 0:00:59.7]} 37. Rxc7 {[%clk 0:01:35.3]}
37... Raxd4 {[%clk 0:00:49.9]} 38. exd4 {[%clk 0:01:37.2]} 38... Rxd4 {[%clk
0:00:51.4]} 39. Be2 {[%clk 0:01:31.6]} 39... Rd7 {[%clk 0:00:48.9]} 40. Rc2
{[%clk 0:01:23.3]} 40... Kd8 {[%clk 0:00:49.9]} 41. Bf3 {[%clk 0:01:22]} 41...
Nf5 {[%clk 0:00:36.6]} 42. Bg4 {[%clk 0:01:09.7]} 42... Rd5 {[%clk 0:00:37]} 43.
Rc6 {[%clk 0:01:08.6]} 43... Rxb5 {[%clk 0:00:34.6]} 44. Bxf5 {[%clk 0:01:09.5]}
44... Rxf5 {[%clk 0:00:35.3]} 45. Rxb6 {[%clk 0:01:11]} 1/2-1/2

[Event "***Titled Tuesday 3|2 Blitz"]
[Site "Chess.com"]
[Date "2017.02.07"]
[Round "2"]
[White "johnathan113"]
[Black "Aguiar94"]
[Result "0-1"]
[WhiteElo "2340"]
[BlackElo "2454"]
[TimeControl "180+2"]
[EndTime "13:25:44 PST"]
[Termination "Aguiar94 won by resignation"]

1. d4 {[%clk 0:03:02]} 1... Nf6 {[%clk 0:03:00.3]} 2. Nc3 {[%clk 0:03:00.3]}
2... d5 {[%clk 0:03:00.5]} 3. Bf4 {[%clk 0:03:00.2]} 3... Bf5 {[%clk 0:02:59.6]}
4. f3 {[%clk 0:03:01]} 4... e6 {[%clk 0:02:56.6]} 5. g4 {[%clk 0:02:59.6]} 5...
Bg6 {[%clk 0:02:57.8]} 6. h4 {[%clk 0:03:00.4]} 6... h6 {[%clk 0:02:59.2]} 7. e3
{[%clk 0:02:58.9]} 7... a6 {[%clk 0:02:58.7]} 8. h5 {[%clk 0:02:58.2]} 8... Bh7
{[%clk 0:02:59.1]} 9. Bd3 {[%clk 0:02:59.9]} 9... c5 {[%clk 0:02:58.9]} 10. Nge2
{[%clk 0:02:58.1]} 10... Nc6 {[%clk 0:02:58.9]} 11. a3 {[%clk 0:02:32.1]} 11...
Bd6 {[%clk 0:02:53.5]} 12. Bxh7 {[%clk 0:02:27.4]} 12... Nxh7 {[%clk 0:02:53.6]}
13. Kf2 {[%clk 0:02:18.6]} 13... Rc8 {[%clk 0:02:48.1]} 14. Bxd6 {[%clk
0:02:14.3]} 14... Qxd6 {[%clk 0:02:48.7]} 15. dxc5 {[%clk 0:02:15.8]} 15... Qxc5
{[%clk 0:02:50.6]} 16. Nd4 {[%clk 0:02:17.1]} 16... Ne5 {[%clk 0:02:43.3]} 17.
Nce2 {[%clk 0:02:01.4]} 17... Nf6 {[%clk 0:02:34.3]} 18. b3 {[%clk 0:01:46.3]}
18... Qd6 {[%clk 0:02:01.5]} 19. Nf4 {[%clk 0:01:33.1]} 19... Rc7 {[%clk
0:01:53.8]} 20. Nd3 {[%clk 0:01:28.3]} 20... O-O {[%clk 0:01:48.9]} 21. Nxe5
{[%clk 0:01:09.7]} 21... Qxe5 {[%clk 0:01:50.8]} 22. Qd2 {[%clk 0:01:08.1]}
22... Rfc8 {[%clk 0:01:50.5]} 23. Rhg1 {[%clk 0:00:54.1]} 23... Qg5 {[%clk
0:01:48.5]} 24. Rac1 {[%clk 0:00:51.1]} 24... e5 {[%clk 0:01:46.6]} 25. Nf5
{[%clk 0:00:50.2]} 25... e4 {[%clk 0:01:44.5]} 26. Qd4 {[%clk 0:00:27]} 26...
Rxc2+ {[%clk 0:01:44.2]} 27. Rxc2 {[%clk 0:00:28.9]} 27... Rxc2+ {[%clk
0:01:45.5]} 28. Kf1 {[%clk 0:00:28.6]} 28... exf3 {[%clk 0:01:40.5]} 29. Ne7+
{[%clk 0:00:29.9]} 29... Kh8 {[%clk 0:01:39.3]} 30. Rg3 {[%clk 0:00:22.1]} 30...
Rc1+ {[%clk 0:01:32.3]} 31. Kf2 {[%clk 0:00:21.5]} 31... Ne4+ {[%clk 0:01:33.7]}
32. Kxf3 {[%clk 0:00:21.4]} 32... Nxg3 {[%clk 0:01:33.3]} 33. Nxd5 {[%clk
0:00:16.7]} 33... Nxh5 {[%clk 0:01:27.7]} 34. Qe4 {[%clk 0:00:08.9]} 34... Nf6
{[%clk 0:01:11.5]} 35. Qe7 {[%clk 0:00:03.7]} 35... Qxd5+ {[%clk 0:01:11.6]} 0-1

[Event "***Titled Tuesday 3|2 Blitz"]
[Site "Chess.com"]
[Date "2017.02.07"]
[Round "2"]
[White "GMBenjaminBok"]
[Black "maciek_92"]
[Result "1-0"]
[WhiteElo "2629"]
[BlackElo "2561"]
[TimeControl "180+2"]
[EndTime "13:25:59 PST"]
[Termination "GMBenjaminBok won by resignation"]

1. e4 {[%clk 0:03:02]} 1... c5 {[%clk 0:03:00.4]} 2. Nf3 {[%clk 0:03:01.9]} 2...
Nc6 {[%clk 0:03:00.3]} 3. Bb5 {[%clk 0:03:02.1]} 3... g6 {[%clk 0:03:01.6]} 4.
Bxc6 {[%clk 0:03:02.8]} 4... bxc6 {[%clk 0:03:03.5]} 5. O-O {[%clk 0:03:03.9]}
5... Bg7 {[%clk 0:03:05]} 6. Re1 {[%clk 0:03:05.6]} 6... Nf6 {[%clk 0:03:06.3]}
7. e5 {[%clk 0:03:06.2]} 7... Nd5 {[%clk 0:03:07.5]} 8. c4 {[%clk 0:03:07.4]}
8... Nc7 {[%clk 0:03:09.1]} 9. d4 {[%clk 0:03:08.2]} 9... cxd4 {[%clk
0:03:10.7]} 10. Qxd4 {[%clk 0:03:09.7]} 10... Ne6 {[%clk 0:03:12.1]} 11. Qh4
{[%clk 0:03:09.5]} 11... d6 {[%clk 0:03:13.6]} 12. Nc3 {[%clk 0:03:05.9]} 12...
dxe5 {[%clk 0:03:06.8]} 13. Nxe5 {[%clk 0:03:06.4]} 13... Qc7 {[%clk 0:02:52.1]}
14. Nf3 {[%clk 0:02:49.1]} 14... O-O {[%clk 0:02:37.3]} 15. Bh6 {[%clk
0:02:48.9]} 15... Rd8 {[%clk 0:02:14.8]} 16. Bxg7 {[%clk 0:02:46.3]} 16... Kxg7
{[%clk 0:02:15.5]} 17. Re3 {[%clk 0:02:23.9]} 17... h6 {[%clk 0:01:52.4]} 18.
Rae1 {[%clk 0:02:23.3]} 18... g5 {[%clk 0:01:28.1]} 19. Qe4 {[%clk 0:02:10.8]}
19... Bb7 {[%clk 0:01:13.1]} 20. h4 {[%clk 0:01:50]} 20... Qf4 {[%clk
0:01:03.5]} 21. hxg5 {[%clk 0:01:49.7]} 21... hxg5 {[%clk 0:01:05.4]} 22. Nxg5
{[%clk 0:01:43.8]} 22... Qxe4 {[%clk 0:00:54.7]} 23. Ncxe4 {[%clk 0:01:40.5]}
23... Nxg5 {[%clk 0:00:37.1]} 24. Nxg5 {[%clk 0:01:42.4]} 24... e6 {[%clk
0:00:38.7]} 25. Rf3 {[%clk 0:01:16.6]} 25... Rd7 {[%clk 0:00:39.4]} 26. Ne4
{[%clk 0:01:14.9]} 26... Rad8 {[%clk 0:00:32.8]} 27. Nc5 {[%clk 0:01:11.3]}
27... Rd1 {[%clk 0:00:30.9]} 28. Rxd1 {[%clk 0:01:06.9]} 28... Rxd1+ {[%clk
0:00:31.5]} 29. Kh2 {[%clk 0:01:08.5]} 29... Bc8 {[%clk 0:00:33.1]} 30. Rd3
{[%clk 0:00:53.5]} 30... Rc1 {[%clk 0:00:34.2]} 31. Rd8 {[%clk 0:00:29.3]} 31...
Rxc4 {[%clk 0:00:34.1]} 32. b4 {[%clk 0:00:30.7]} 32... Rxb4 {[%clk 0:00:29]}
33. Rxc8 {[%clk 0:00:32]} 33... Rb2 {[%clk 0:00:30.6]} 34. a4 {[%clk 0:00:32.9]}
34... Rxf2 {[%clk 0:00:30.7]} 35. Rc7 {[%clk 0:00:29.7]} 35... Kf6 {[%clk
0:00:21.8]} 36. Ne4+ {[%clk 0:00:29.3]} 1-0